[Event "Kragero Resort Chess A 2018"]
[Site "Kragero"]
[Date "2018.02.25"]
[Round "8"]
[White "Pantzar, Milton"]
[Black "Haug, Johannes"]
[Result "1/2-1/2"]
[ECO "E20"]
[WhiteElo "2260"]
[BlackElo "2355"]
[Annotator "NA"]
[PlyCount "89"]
[EventDate "2018.??.??"]
[EventType "swiss"]
[EventCountry "NOR"]
[SourceTitle "playchess.com"]
[Source "ChessBase"]
[SourceQuality "1"]
[TimeControl "5400+30"]

1. d4 {[%emt 0:00:00]} Nf6 {[%emt 0:03:06]} 2. c4 {[%emt 0:00:00]} e6 {[%emt 0:01:01]} 3. Nc3 {[%emt 0:00:00]} Bb4 {[%emt 0:00:41]} 4. Bd2 {[%emt 0:00:16]} O-O {[%emt 0:06:43]} 5. a3 {[%emt 0:00:27]} Bxc3 {[%emt 0:02:42]} 6. Bxc3 {[%emt 0:00:11]} Ne4 {[%emt 0:03:09]} 7. Rc1 {[%emt 0:00:57] E20: Nimzo-Indian: 4 g3 and 4 f3} b6 {[%emt 0:01:55] LiveBook: 3 Games} 8. Nf3 {[%emt 0:01:01]} d6 {[%emt 0:01:40]} 9. e3 {[%emt 0:01:33]} Nd7 {[%emt 0:05:32]} 10. Bd3 {[%emt 0:03:14]} Bb7 {[%emt 0:01:49]} 11. O-O {[%emt 0:00:29]} f5 {[%emt 0:06:23]} 12. Be1 {[%emt 0:05:47]} Ng5 $146 {[%emt 0:20:11]} ({Predecessor:} 12... Qf6 13. Nd2 Nxd2 14. Qxd2 f4 15. f3 c5 16. Bf2 fxe3 17. Qxe3 Rae8 {1-0 (56) Nguyen,D (2516)-Tu,H (2414) Ho Chi Minh City 2015}) 13. Nd2 {[%emt 0:22:31]} Qf6 {[%emt 0:15:52]} 14. f3 {[%emt 0:08:54]} e5 {[%emt 0:03:54]} 15. c5 {[%emt 0:08:53]} dxc5 {[%emt 0:05:47]} 16. dxc5 {[%emt 0:00:31]} Kh8 {[%emt 0:02:59]} 17. cxb6 {[%emt 0:05:39]} cxb6 {[%emt 0:00:19]} 18. b4 {[%emt 0:00:27]} Rfd8 {[%emt 0:03:47]} 19. Qb3 {[%emt 0:04:26]} Nf8 {[%emt 0:02:53]} 20. Qb1 {[%emt 0:02:24]} f4 {[%emt 0:02:38]} ({Günstiger ist} 20... Rac8 $11 21. Rxc8 Bxc8) 21. Ne4 {[%emt 0:02:01]} Bxe4 {[%emt 0:04:34]} 22. Bxe4 {[%emt 0:01:00]} Rac8 {[%emt 0:00:01]} 23. exf4 {[%emt 0:08:03]} exf4 {[%emt 0:01:16]} 24. Bf2 {[%emt 0:00:38]} Rxc1 {[%emt 0:01:59]} 25. Rxc1 {[%emt 0:01:05]} Nxe4 {[%emt 0:00:04]} 26. Qxe4 {[%emt 0:01:12]} Qb2 {[%emt 0:00:49]} 27. Re1 {[%emt 0:01:49]} Qxa3 {[%emt 0:01:04]} 28. Bd4 {[%emt 0:08:30]} Rd7 $1 {[%emt 0:00:40]} 29. Qxf4 {[%emt 0:01:36]} Kg8 {[%emt 0:00:08]} 30. Ba1 {[%emt 0:01:10]} Qa2 {[%emt 0:01:04]} 31. h3 {[%emt 0:01:27]} a5 {[%emt 0:00:40]} 32. bxa5 {[%emt 0:00:50]} bxa5 {[%emt 0:00:20]} 33. Kh2 {[%emt 0:00:11]} a4 {[%emt 0:00:43]} 34. Re8 {[%emt 0:01:16]} Rf7 {[%emt 0:00:28]} 35. Qd4 {[%emt 0:00:22]} Rf6 {[%emt 0:00:33]} 36. Re7 {[%emt 0:03:04]} Rf7 {[%emt 0:00:32]} 37. Re8 {[%emt 0:02:40]} Rf6 {[%emt 0:00:09]} 38. Ra8 {[%emt 0:00:24]} a3 {[%emt 0:00:40] [#]} 39. Qc3 $11 {[%emt 0:00:37]} (39. Bc3 $1 $18 Qf7 40. Ra7 (40. Rxa3 Qc7+ 41. Kg1 Rd6 $16)) 39... Rg6 {[%emt 0:00:32]} 40. Rxf8+ {[%emt 0:02:31]} Kxf8 {[%emt 0:00:06]} 41. Qc8+ {[%emt 0:00:12]} Ke7 {[%emt 0:00:26]} 42. Qc7+ {[%emt 0:00:13]} Ke8 {[%emt 0:00:24]} 43. Qc8+ {[%emt 0:00:07]} Ke7 {[%emt 0:00:41]} 44. Qc7+ {[%emt 0:00:13]} Ke6 {[%emt 0:00:42]} 45. Qc6+ {[%emt 0:00:22] Ke5} 1/2-1/2

[Event "Kragero Resort Chess A 2018"]
[Site "Kragero"]
[Date "2018.02.25"]
[Round "8"]
[White "Lindbol, Aleksander"]
[Black "Rishovd, Svein"]
[Result "0-1"]
[ECO "A20"]
[WhiteElo "2218"]
[BlackElo "2126"]
[Annotator "NA"]
[PlyCount "126"]
[EventDate "2018.??.??"]
[EventType "swiss"]
[EventCountry "NOR"]
[SourceTitle "playchess.com"]
[Source "ChessBase"]
[SourceQuality "1"]
[TimeControl "5400+30"]

1. c4 {[%emt 0:00:00]} e5 {[%emt 0:00:09]} 2. g3 {[%emt 0:00:00]} c6 {[%emt 0:00:05]} 3. d4 {[%emt 0:01:36]} e4 {[%emt 0:00:11] A20: English Opening: 1...e5} 4. Nc3 {[%emt 0:01:15]} d5 {[%emt 0:00:12]} 5. Bg2 {[%emt 0:00:19]} Bb4 {[%emt 0:00:25]} 6. Qb3 {[%emt 0:03:07]} Ba5 {[%emt 0:00:32] LiveBook: 4 Games} 7. Nh3 {[%emt 0:01:29]} h6 {[%emt 0:02:24]} 8. O-O {[%emt 0:04:02]} Nf6 {[%emt 0:01:11]} 9. Nf4 $146 {[%emt 0:09:45]} ({Find the theoretical novelty and annotate with similar games:} 9. cxd5 $11 cxd5 10. Bf4 (10. Nf4 Bxc3 11. bxc3 {½-½ (52) Movsesian,S (2688)-Grandelius,N (2572) Wijk aan Zee 2013})) 9... g5 {[%emt 0:03:58]} 10. Nh3 {[%emt 0:01:28]} dxc4 {[%emt 0:07:11]} 11. Qc2 {[%emt 0:20:46]} (11. Qxc4 $15 Be6 12. Qa4) 11... Bf5 {[%emt 0:15:53]} 12. f3 {[%emt 0:24:28]} Qxd4+ {[%emt 0:01:30]} 13. Nf2 {[%emt 0:00:21]} Nbd7 {[%emt 0:11:17]} 14. fxe4 {[%emt 0:03:07]} (14. e3 $17 Qc5 15. Ncxe4) 14... Be6 {[%emt 0:01:33]} 15. e3 {[%emt 0:08:59]} Qe5 {[%emt 0:02:41]} 16. Ne2 {[%emt 0:00:42]} O-O-O {[%emt 0:05:14]} 17. Nd4 {[%emt 0:02:02]} (17. b4 $17 {keeps fighting.} Bxb4 18. Rb1) 17... h5 {[%emt 0:06:15]} 18. b4 {[%emt 0:07:44]} Bxb4 {[%emt 0:13:07]} 19. Bb2 {[%emt 0:00:09]} Qc7 {[%emt 0:01:35]} 20. Nxe6 {[%emt 0:01:49]} fxe6 {[%emt 0:00:09]} 21. Qxc4 {[%emt 0:00:03]} h4 {[%emt 0:02:53]} 22. g4 {[%emt 0:00:39]} Bd6 {[%emt 0:00:45]} 23. e5 {[%emt 0:03:04]} Bxe5 {[%emt 0:07:34]} 24. Bxe5 {[%emt 0:00:05]} Nxe5 {[%emt 0:00:14]} 25. Qxe6+ {[%emt 0:00:09]} Ned7 {[%emt 0:00:27]} 26. Ne4 {[%emt 0:04:38]} Nxe4 $19 {[%emt 0:02:04]} 27. Qxe4 {[%emt 0:00:52]} Qe5 {[%emt 0:00:48]} 28. Qd4 {[%emt 0:00:40]} Qxd4 {[%emt 0:01:44]} 29. exd4 {[%emt 0:00:01]} Rhf8 {[%emt 0:00:36]} 30. d5 {[%emt 0:00:54]} c5 {[%emt 0:02:22]} 31. Rae1 {[%emt 0:00:19]} Rxf1+ {[%emt 0:00:26]} 32. Kxf1 {[%emt 0:00:06]} Rf8+ {[%emt 0:00:22]} 33. Kg1 {[%emt 0:00:11]} Kd8 {[%emt 0:00:46]} 34. Re3 {[%emt 0:01:27]} Rf4 {[%emt 0:02:00]} 35. h3 {[%emt 0:00:14]} b6 {[%emt 0:00:34]} 36. Bf3 {[%emt 0:00:57]} Rf7 {[%emt 0:02:25]} 37. Kf2 {[%emt 0:00:12]} Re7 {[%emt 0:00:12]} 38. Ra3 {[%emt 0:00:49]} a5 {[%emt 0:01:08]} 39. Rb3 {[%emt 0:00:22]} Kc7 {[%emt 0:00:17]} 40. a4 {[%emt 0:00:17]} Re5 {[%emt 0:00:24]} 41. Bg2 {[%emt 0:00:39]} Kd6 {[%emt 0:00:34]} 42. Bh1 {[%emt 0:00:24]} c4 {[%emt 0:02:31]} 43. Rc3 {[%emt 0:00:01]} Kc5 {[%emt 0:00:14]} 44. Rc1 {[%emt 0:00:05]} Nf6 {[%emt 0:02:56]} 45. d6 {[%emt 0:00:47]} Re6 {[%emt 0:00:11]} 46. Rb1 {[%emt 0:01:12]} Rxd6 {[%emt 0:00:34]} 47. Ke3 {[%emt 0:00:36]} Rd3+ {[%emt 0:00:21]} 48. Ke2 {[%emt 0:00:33]} Rxh3 {[%emt 0:02:25]} 49. Bf3 {[%emt 0:00:01]} Rh2+ {[%emt 0:00:56]} 50. Ke3 {[%emt 0:00:02]} Nd5+ {[%emt 0:00:12]} 51. Bxd5 {[%emt 0:00:04]} Kxd5 {[%emt 0:00:01]} 52. Rb5+ {[%emt 0:00:08]} Kc6 {[%emt 0:00:30]} 53. Rxg5 {[%emt 0:00:04]} Ra2 {[%emt 0:00:19]} 54. Rg6+ {[%emt 0:00:25]} Kb7 {[%emt 0:00:31]} 55. Rh6 {[%emt 0:00:23]} h3 {[%emt 0:00:12]} 56. g5 {[%emt 0:00:36]} Rxa4 {[%emt 0:00:44]} 57. g6 {[%emt 0:00:09]} c3 {[%emt 0:00:43]} 58. Rxh3 {[%emt 0:01:30]} Rg4 {[%emt 0:00:07]} 59. Rh7+ {[%emt 0:00:16]} Ka6 {[%emt 0:00:22]} 60. g7 {[%emt 0:00:09]} Rg3+ {[%emt 0:00:32]} 61. Ke2 {[%emt 0:00:39]} a4 {[%emt 0:00:46]} 62. Kd1 {[%emt 0:01:17]} Rg2 {[%emt 0:00:14]} 63. Kc1 {[%emt 0:00:43]} b5 {[%emt 0:00:12]} 0-1

[Event "Kragero Resort Chess A 2018"]
[Site "Kragero"]
[Date "2018.02.25"]
[Round "8"]
[White "Sahl, Sheila Barth"]
[Black "Bergsson, Stefan"]
[Result "0-1"]
[ECO "B48"]
[WhiteElo "2181"]
[BlackElo "2093"]
[Annotator "NA"]
[PlyCount "98"]
[EventDate "2018.??.??"]
[EventType "swiss"]
[EventCountry "NOR"]
[SourceTitle "playchess.com"]
[Source "ChessBase"]
[SourceQuality "1"]
[TimeControl "5400+30"]

1. e4 {[%emt 0:01:42]} c5 {[%emt 0:00:29]} 2. Nf3 {[%emt 0:00:07]} e6 {[%emt 0:00:11]} 3. d4 {[%emt 0:00:06]} cxd4 {[%emt 0:00:05]} 4. Nxd4 {[%emt 0:00:04]} Nc6 {[%emt 0:00:09]} 5. Nc3 {[%emt 0:00:26]} Qc7 {[%emt 0:00:15]} 6. Be3 {[%emt 0:00:33]} Nf6 {[%emt 0:00:13]} 7. Bd3 {[%emt 0:05:26]} a6 {[%emt 0:04:08]} 8. O-O {[%emt 0:01:40]} b5 {[%emt 0:09:39]} 9. Nxc6 {[%emt 0:06:25]} Qxc6 {[%emt 0:01:23]} 10. a3 {[%emt 0:17:30]} Bb7 {[%emt 0:05:34] LiveBook: 125 Games} 11. Bd4 {[%emt 0:08:06] B48: Sicilian: Taimanov: 5 Nc3 Qc7 6 Be3 a6 without Be2} (11. Re1 Rc8 12. Qf3 Bd6 13. Bd4 Qc7 14. Bxf6 gxf6 15. Qh5 Be5 16. Nd1 Ke7 17. c3 Rcg8 18. Ne3 Rg5 19. Qh3 {0-1 (47) Carlsen,M (2837)-Ding,L (2774) Saint Louis 2017}) 11... Be7 {[%emt 0:09:25]} 12. Be2 $146 {[%emt 0:06:05]} ({Predecessor:} 12. f4 h5 13. Qe2 h4 14. b4 h3 15. gxh3 Rxh3 16. Kg2 Rh6 17. a4 Bxb4 18. axb5 axb5 19. Rxa8+ Bxa8 20. Bxb5 {0-1 (39) Trygstad,K (2227)-Skytte,R (2338) Copenhagen 1999}) 12... d6 {[%emt 0:14:12]} 13. Bf3 {[%emt 0:04:44]} e5 {[%emt 0:08:05]} 14. Be3 {[%emt 0:00:08]} h6 {[%emt 0:00:08]} 15. Re1 {[%emt 0:06:05]} Rc8 {[%emt 0:04:17]} 16. Qe2 {[%emt 0:06:33]} O-O {[%emt 0:01:25]} 17. Rad1 {[%emt 0:00:13]} Bd8 {[%emt 0:05:21]} 18. Qd3 {[%emt 0:09:35]} Ba5 {[%emt 0:00:57]} 19. Bd2 {[%emt 0:02:10]} Bb6 {[%emt 0:02:35]} 20. Re2 {[%emt 0:00:18]} a5 {[%emt 0:02:03]} 21. Nxb5 {[%emt 0:01:51]} Ba6 {[%emt 0:01:37]} 22. a4 {[%emt 0:00:52]} Qxc2 {[%emt 0:01:17]} 23. Qxc2 {[%emt 0:05:18]} Rxc2 {[%emt 0:00:03]} 24. Bxh6 $2 {[%emt 0:03:23]} (24. Be3 $11 {and White stays safe.} Rxe2 25. Bxe2 Bxe3 26. fxe3) 24... Rxe2 {[%emt 0:01:54]} 25. Bxe2 {[%emt 0:00:02]} Bxb5 {[%emt 0:05:02]} 26. axb5 {[%emt 0:02:30]} gxh6 {[%emt 0:00:57]} 27. Rxd6 {[%emt 0:00:03]} Bxf2+ {[%emt 0:01:28]} 28. Kf1 {[%emt 0:00:03]} Nxe4 {[%emt 0:00:16]} 29. Ra6 {[%emt 0:00:06]} Bd4 {[%emt 0:00:45]} 30. Rxa5 {[%emt 0:00:05]} Rc8 {[%emt 0:00:51]} 31. Bd3 {[%emt 0:00:13]} Nd2+ {[%emt 0:01:20]} 32. Ke1 {[%emt 0:00:19]} Bxb2 {[%emt 0:01:51]} 33. Bf5 {[%emt 0:01:25]} Rd8 {[%emt 0:01:37]} 34. b6 {[%emt 0:00:33]} Bc3 {[%emt 0:00:20]} 35. Rb5 {[%emt 0:00:05]} Nb3+ {[%emt 0:03:30]} 36. Kf1 $19 {[%emt 0:00:52]} Rd1+ {[%emt 0:01:41]} 37. Ke2 {[%emt 0:00:20]} Rd2+ {[%emt 0:00:52]} 38. Ke3 {[%emt 0:00:19]} Nd4 {[%emt 0:03:24]} 39. Bd3 {[%emt 0:04:10]} Nxb5 {[%emt 0:02:00]} 40. b7 {[%emt 0:00:03]} Rxd3+ {[%emt 0:00:52]} 41. Kxd3 {[%emt 0:00:06]} e4+ {[%emt 0:00:14]} 42. Kxe4 {[%emt 0:00:19]} Nd6+ {[%emt 0:00:15]} 43. Kd3 {[%emt 0:00:02]} Nxb7 {[%emt 0:00:12]} 44. Kxc3 {[%emt 0:00:03]} h5 {[%emt 0:01:05]} 45. Kd4 {[%emt 0:00:03]} Kg7 {[%emt 0:00:19]} 46. Ke5 {[%emt 0:00:03]} Kg6 {[%emt 0:00:20]} 47. h3 {[%emt 0:00:42]} Nc5 {[%emt 0:00:20]} 48. g3 {[%emt 0:00:27]} Nd3+ {[%emt 0:02:09]} 49. Kd6 {[%emt 0:00:05]} Nf2 {[%emt 0:00:06]} 0-1

[Event "Kragero Resort Chess A 2018"]
[Site "Kragero"]
[Date "2018.02.25"]
[Round "8"]
[White "Vestby-Ellingsen, Mads"]
[Black "Genocchio, Daniele"]
[Result "1/2-1/2"]
[ECO "C41"]
[WhiteElo "2160"]
[BlackElo "2385"]
[Annotator "NA"]
[PlyCount "86"]
[EventDate "2018.??.??"]
[EventType "swiss"]
[EventCountry "NOR"]
[SourceTitle "playchess.com"]
[Source "ChessBase"]
[SourceQuality "1"]
[TimeControl "5400+30"]

1. d4 {[%emt 0:00:00]} d6 {[%emt 0:06:39]} 2. e4 {[%emt 0:00:00]} Nf6 {[%emt 0:00:04]} 3. Nc3 {[%emt 0:00:00]} e5 {[%emt 0:00:03]} 4. Nf3 {[%emt 0:00:11]} Nbd7 {[%emt 0:00:04]} 5. Bc4 {[%emt 0:00:14]} Be7 {[%emt 0:00:06]} 6. O-O {[%emt 0:00:12]} exd4 {[%emt 0:01:28] C41: Philidor Defence} (6... O-O 7. Re1 c6 8. a4 a5 9. h3 Re8 10. Ba2 Bf8 11. Be3 Qc7 12. Ng5 Re7 13. f4 b6 14. fxe5 dxe5 15. d5 cxd5 16. exd5 {1-0 (16) Wang,H (2709)-Ivanchuk,V (2726) Huaian 2017}) 7. Qxd4 {[%emt 0:03:48]} O-O {[%emt 0:00:25]} 8. h3 {[%emt 0:02:01]} Nb6 {[%emt 0:03:27] LiveBook: 6 Games} 9. Bb3 {[%emt 0:04:19]} a5 {[%emt 0:04:21]} 10. a3 {[%emt 0:06:39]} Nfd7 {[%emt 0:02:11]} 11. Be3 {[%emt 0:32:15]} Nc5 {[%emt 0:06:11]} 12. Ba2 {[%emt 0:01:37]} Be6 {[%emt 0:01:04]} 13. Nd5 $146 {[%emt 0:05:20]} ({Predecessor:} 13. Rfd1 Bxa2 14. Rxa2 {0-1 (64) Korneev,O (2571)-Strikovic,A (2519) Mondariz 2009}) 13... Nxd5 {[%emt 0:10:07]} 14. Bxd5 {[%emt 0:03:20]} Bf6 {[%emt 0:43:40]} 15. Qc4 {[%emt 0:00:36]} Bxb2 {[%emt 0:03:20]} 16. Ra2 $1 {[%emt 0:01:56]} Bxd5 {[%emt 0:01:16]} 17. exd5 {[%emt 0:02:38]} Bf6 {[%emt 0:00:04]} 18. Bxc5 {[%emt 0:00:30]} dxc5 {[%emt 0:00:03]} 19. Qxc5 {[%emt 0:00:18]} a4 {[%emt 0:00:45]} 20. c4 {[%emt 0:03:19]} Re8 {[%emt 0:04:09]} 21. Qb4 {[%emt 0:03:33]} b6 {[%emt 0:01:18]} 22. Qd2 {[%emt 0:07:56]} Re4 {[%emt 0:00:57]} 23. Qc2 {[%emt 0:01:02]} Rf4 {[%emt 0:05:21]} 24. Qd3 {[%emt 0:02:29]} Qe7 {[%emt 0:01:41]} 25. Re2 {[%emt 0:01:26]} Qc5 {[%emt 0:00:02]} 26. Rc1 {[%emt 0:01:13]} g6 {[%emt 0:04:11]} (26... b5 $5) 27. g3 {[%emt 0:02:49]} Rf5 {[%emt 0:00:02]} 28. Rce1 {[%emt 0:00:14]} b5 {[%emt 0:00:46]} 29. Re4 {[%emt 0:06:46]} bxc4 {[%emt 0:00:08]} 30. Rxc4 {[%emt 0:01:10]} Qxd5 {[%emt 0:00:34]} 31. Qxd5 {[%emt 0:00:11]} Rxd5 {[%emt 0:00:01]} 32. Rxc7 {[%emt 0:00:13]} Rd3 {[%emt 0:00:53]} 33. Ne5 {[%emt 0:02:06]} Rxa3 {[%emt 0:00:37]} 34. Nxf7 {[%emt 0:00:16]} Ra1 $17 {[%emt 0:00:26]} 35. Nh6+ {[%emt 0:00:53]} Kh8 {[%emt 0:00:29]} 36. Nf7+ {[%emt 0:00:27]} Kg8 {[%emt 0:00:00]} 37. Nh6+ {[%emt 0:00:07]} Kh8 {[%emt 0:00:01]} 38. Nf7+ {[%emt 0:00:08]} Kg7 {[%emt 0:01:34]} 39. Nd8+ {[%emt 0:01:48]} Kh6 {[%emt 0:00:30]} 40. Nf7+ {[%emt 0:00:17]} Kg7 {[%emt 0:00:55]} 41. Nd8+ {[%emt 0:05:09]} Kh6 {[%emt 0:00:02]} 42. Nf7+ {[%emt 0:00:23]} Kg7 {[%emt 0:00:21]} 43. Nd8+ Kg8 1/2-1/2

[Event "Kragero Resort Chess A 2018"]
[Site "Kragero"]
[Date "2018.02.25"]
[Round "8"]
[White "Nielsen, Andre"]
[Black "Skotheim, Andreas"]
[Result "*"]
[ECO "C47"]
[WhiteElo "2145"]
[BlackElo "2025"]
[Annotator "NA"]
[PlyCount "76"]
[EventDate "2018.??.??"]
[EventType "swiss"]
[EventCountry "NOR"]
[SourceTitle "playchess.com"]
[Source "ChessBase"]
[SourceQuality "1"]
[TimeControl "5400+30"]

1. e4 {[%emt 0:00:00]} Nc6 {[%emt 0:00:09]} 2. Nf3 {[%emt 0:00:40]} e5 {[%emt 0:00:41]} 3. Nc3 {[%emt 0:00:07]} Nf6 {[%emt 0:00:37]} 4. d4 {[%emt 0:00:12]} exd4 {[%emt 0:00:22]} 5. Nxd4 {[%emt 0:00:06]} Bb4 {[%emt 0:00:30]} 6. Nxc6 {[%emt 0:00:16]} bxc6 {[%emt 0:00:44]} 7. Bd3 {[%emt 0:00:14]} d5 {[%emt 0:00:35]} 8. exd5 {[%emt 0:00:12]} cxd5 {[%emt 0:00:08]} 9. O-O {[%emt 0:00:09]} O-O {[%emt 0:00:15]} 10. Bg5 {[%emt 0:00:22]} c6 {[%emt 0:01:05]} 11. Na4 {[%emt 0:00:32]} ({Viel schlechter ist} 11. Bxf6 Qxf6 12. Ne2 Bd6 $17) 11... Re8 {[%emt 0:02:26] LiveBook: 43 Games} 12. c3 {[%emt 0:02:47]} ({Viel schlechter ist} 12. Bxf6 Qxf6 13. c4 Be6 $17) 12... Bd6 {[%emt 0:01:24] C47: Scotch Four Knights and Four Knights with 4 g3} 13. b4 {[%emt 0:12:23]} ({Much worse is} 13. Bxf6 Qxf6 14. b4 Bf5 $17) (13. Bh4 Bg4 14. f3 Bh5 15. Qc2 Bg6 16. Rae1 Qc7 17. g4 Bxd3 18. Qxd3 Nd7 19. Qc2 Nf8 20. Rxe8 Rxe8 {0-1 (40) Nakamura,H (2789)-Carlsen,M (2872) Zuerich 2014}) 13... Be6 $146 {[%emt 0:11:28]} ({Find the theoretical novelty and annotate with similar games:} 13... h6 14. Bh4 a5 15. b5 cxb5 16. Bxb5 Re6 17. c4 Rb8 18. Bg3 Bxg3 19. hxg3 Re5 {½-½ (29) Meszaros,T (2408)-Lapshun,Y (2462) Budapest 2005}) 14. Bc2 {[%emt 0:00:59]} h6 {[%emt 0:01:45]} 15. Bh4 {[%emt 0:00:11]} a5 {[%emt 0:03:07]} 16. Qd4 {[%emt 0:14:32]} axb4 {[%emt 0:08:58]} 17. cxb4 {[%emt 0:00:15]} Qe7 {[%emt 0:13:36]} 18. a3 {[%emt 0:05:18]} Bc8 {[%emt 0:09:22]} 19. Bg3 {[%emt 0:12:26]} Bxg3 {[%emt 0:03:00]} 20. hxg3 {[%emt 0:01:42]} Ba6 {[%emt 0:01:30]} 21. Rfd1 {[%emt 0:03:45]} h5 {[%emt 0:03:47]} 22. Nc5 {[%emt 0:03:49]} Bc4 {[%emt 0:04:30]} 23. Bd3 {[%emt 0:06:22]} Bxd3 {[%emt 0:01:44]} 24. Qxd3 $14 {[%emt 0:01:43]} Ng4 {[%emt 0:01:49]} 25. Kf1 {[%emt 0:06:18]} Qf6 {[%emt 0:01:26]} 26. Qd4 {[%emt 0:02:45]} Nh2+ {[%emt 0:06:48]} 27. Kg1 {[%emt 0:00:24]} Re1+ {[%emt 0:00:27]} 28. Kxh2 {[%emt 0:00:36]} Qxd4 {[%emt 0:00:10]} 29. Rxe1 {[%emt 0:00:23]} Qxf2 {[%emt 0:00:47]} 30. Rf1 {[%emt 0:04:16]} Qd4 {[%emt 0:03:05]} 31. Rad1 {[%emt 0:00:23]} Qg4 {[%emt 0:01:38]} 32. Rd3 {[%emt 0:00:34]} Re8 {[%emt 0:02:16]} 33. Rf4 {[%emt 0:00:53]} Qg5 {[%emt 0:01:32]} 34. a4 {[%emt 0:00:51]} Qe5 {[%emt 0:01:42]} 35. a5 {[%emt 0:02:11]} Qa1 {[%emt 0:02:24]} 36. g4 {[%emt 0:03:09]} h4 {[%emt 0:00:24]} 37. g5 {[%emt 0:02:06]} Re1 {[%emt 0:00:45]} 38. Rxh4 {[%emt 0:01:07]} Rh1+ {[%emt 0:00:40]} *

[Event "Kragero Resort Chess A 2018"]
[Site "Kragero"]
[Date "2018.02.25"]
[Round "8"]
[White "Fossan, Andreas"]
[Black "Dahl, Trygve"]
[Result "1-0"]
[ECO "E70"]
[WhiteElo "1997"]
[BlackElo "2217"]
[Annotator "NA"]
[PlyCount "55"]
[EventDate "2018.??.??"]
[EventType "swiss"]
[EventCountry "NOR"]
[SourceTitle "playchess.com"]
[Source "ChessBase"]
[SourceQuality "1"]
[TimeControl "5400+30"]

{[%evp 8,52,46,31,44,41,47,35,42,43,58,54,47,34,41,49,44,25,13,36,17,0,41,0,7,32767,32767,32767,32767,32767,32767,32767,32767,32767,32767,-47,-41,-45,-46,-41,32767,-45,569,-566,549,350,604]} 1. d4 {[%emt 0:00:00]} Nf6 {[%emt 0:00:28]} 2. c4 {[%emt 0:00:00]} g6 {[%emt 0:00:19]} 3. Nc3 {[%emt 0:00:00]} Bg7 {[%emt 0:00:05]} 4. e4 {[%emt 0:00:47]} d6 {[%emt 0:00:35]} 5. Bd3 {[%emt 0:00:47]} O-O {[%emt 0:00:17]} 6. Nge2 {[%emt 0:00:05]} e5 {[%emt 0:00:06]} 7. d5 {[%emt 0:00:13]} Nh5 {[%emt 0:00:26]} 8. O-O {[%emt 0:06:48]} a5 {[%emt 0:02:45] E70: King's Indian: Miscellaneous lines with 4 e4, including 5 Nge2 and 5 Bd3 0-0 6 Nge2} (8... Nd7 9. Bc2 f5 10. exf5 gxf5 11. Ng3 Nxg3 12. fxg3 e4 13. g4 Ne5 14. gxf5 Bxf5 15. Qe2 Qh4 16. Bf4 Nf3+ 17. gxf3 exf3 18. Rxf3 Bxc2 {½-½ (29) Romanov,E (2638)-Smirin,I (2644) Stockholm 2015}) 9. Be3 {[%emt 0:01:30]} Na6 {[%emt 0:01:23]} 10. Rc1 {[%emt 0:04:46]} f5 $146 {[%emt 0:03:36]} ({Predecessor:} 10... Bd7 11. Bc2 Qe7 {½-½ (11) Emodi,B (2400)-Piroth,A (2305) Hungary 1998}) 11. exf5 $1 {[%emt 0:03:15]} gxf5 {[%emt 0:01:55]} 12. f4 {[%emt 0:08:58]} Nf6 {[%emt 0:08:41]} 13. h3 {[%emt 0:04:26]} e4 {[%emt 0:07:12]} 14. Bb1 {[%emt 0:01:12]} c5 {[%emt 0:02:40]} 15. Qd2 {[%emt 0:04:13]} (15. dxc6 $5 bxc6 16. Qd2 $11) 15... Bd7 {[%emt 0:01:59]} 16. a4 {[%emt 0:04:59]} Nb4 {[%emt 0:05:38]} 17. Ng3 {[%emt 0:04:52]} Kh8 {[%emt 0:04:25]} 18. b3 {[%emt 0:05:44]} Rg8 {[%emt 0:03:02]} 19. Bf2 {[%emt 0:04:49]} Bh6 {[%emt 0:02:47]} 20. Nd1 {[%emt 0:03:00]} Qe8 {[%emt 0:03:05]} 21. Be1 {[%emt 0:05:16]} Nh5 {[%emt 0:01:58]} 22. Nxh5 {[%emt 0:08:52]} Qxh5 {[%emt 0:00:07]} 23. Qb2+ {[%emt 0:07:54]} Bg7 {[%emt 0:01:02]} 24. Bc3 {[%emt 0:00:22]} Qxh3 $2 {[%emt 0:07:06]} (24... Qh4 $15 {bleibt weiter vorne.}) 25. Bxg7+ {[%emt 0:00:51]} Rxg7 {[%emt 0:01:06] [#]} 26. Qxg7+ $18 {[%emt 0:00:10]} Kxg7 {[%emt 0:00:04]} 27. gxh3 {[%emt 0:00:04]} Kf6 {[%emt 0:01:17]} 28. Ne3 {[%emt 0:00:36]} 1-0